bitfinex-derivatives/quotes_ETHF0:USTF0_20230105
["timestamp","ask_amount","ask_price","bid_price","bid_amount"]
[1672894656889,0.00489012,1254.0,1253.9,4.2932462]
[1672894657099,0.00489012,1254.0,1253.9,7.5010462]
[1672894659410,0.00489012,1254.0,1253.9,8.69575288]
[1672894659930,0.00489012,1254.0,1253.9,7.5010462]
[1672894661302,0.00489012,1254.0,1253.9,4.2932462]
[1672894661504,0.00489012,1254.0,1253.9,7.5010462]
[1672894661931,0.00489012,1254.0,1253.9,4.2932462]
[1672894662135,0.00489012,1254.0,1253.9,7.5010462]
[1672894662348,0.00489012,1254.0,1253.9,4.2932462]
[1672894662563,0.00489012,1254.0,1253.9,7.5010462]
[1672894663090,4.18272434,1254.2,1253.9,4.2932462]
[1672894663299,2.5,1254.1,1254.0,1.19452043]
[1672894663613,2.5,1254.1,1253.9,8.69556663]
[1672894663815,2.5,1254.1,1254.0,1.19452043]
[1672894664245,2.5,1254.1,1253.9,8.69556663]
[1672894664876,2.5,1254.1,1254.0,1.19452043]
[1672894665498,2.5,1254.1,1253.9,8.69556663]
[1672894667190,2.5,1254.1,1253.9,5.48776663]
[1672894667509,2.5,1254.1,1253.9,8.69556663]
[1672894668139,2.5,1254.1,1253.9,5.48776663]
[1672894668349,2.5,1254.1,1253.9,8.69556663]
[1672894672968,2.5,1254.1,1253.9,5.48776663]
[1672894673179,2.5,1254.1,1253.9,8.69556663]
[1672894674023,2.5,1254.1,1253.9,5.48776663]
[1672894674340,2.5,1254.1,1253.9,8.69556663]
[1672894674657,2.5,1254.1,1253.9,5.48776663]
[1672894674867,2.5,1254.1,1253.9,8.69556663]
[1672894675180,2.5,1254.1,1253.9,5.48776663]
[1672894675391,2.5,1254.1,1253.9,8.69556663]
[1672894677600,2.5,1254.1,1253.9,5.48776663]
[1672894677804,2.5,1254.1,1253.9,8.69556663]
[1672894679710,2.5,1254.1,1253.9,5.48776663]
[1672894679921,6.68272434,1254.2,1253.9,8.69556663]
[1672894680236,2.5,1254.1,1253.9,8.69556663]
[1672894681391,2.5,1254.1,1253.9,5.48776663]
[1672894681602,2.5,1254.1,1253.9,8.69556663]
[1672894682555,2.5,1254.1,1254.0,1.19452043]
[1672894683390,2.5,1254.2,1254.0,1.19452043]
[1672894686120,2.5,1254.2,1254.0,2.98776663]
[1672894687589,2.5,1254.2,1254.0,6.19556663]
[1672894688430,2.5,1254.2,1254.0,4.40232043]
[1672894689902,2.5,1254.2,1254.0,1.19452043]
[1672894691381,6.68272434,1254.2,1254.0,1.19452043]
[1672894693477,6.68272434,1254.2,1254.0,2.98776663]
[1672894694741,4.18272434,1254.2,1254.0,2.98776663]
[1672894695062,4.18272434,1254.3,1254.1,6.90232043]
[1672894695259,6.68272434,1254.3,1254.2,2.5]
[1672894696311,6.68272434,1254.3,1254.1,6.90232043]
[1672894698107,6.68272434,1254.3,1254.1,3.69452043]
[1672894698108,2.5,1254.2,1254.1,3.69452043]
[1672894703269,2.5,1254.2,1254.1,6.90232043]
[1672894703682,6.68272434,1254.3,1254.1,6.90232043]
[1672894707356,2.5,1254.3,1254.1,6.90232043]
[1672894708938,2.5,1254.3,1254.1,4.40232043]
[1672894709134,6.68272434,1254.3,1254.1,4.40232043]
[1672894709348,6.68272434,1254.3,1254.1,3.2078]
[1672894710829,6.68272434,1254.3,1254.1,4.40232043]
[1672894712621,9.89052434,1254.3,1254.0,1.19452043]
[1672894713028,4.18272434,1254.2,1254.0,1.19452043]
[1672894713245,2.5,1254.1,1254.0,1.19452043]
[1672894714402,2.5,1254.1,1254.0,3.69452043]
[1672894714722,2.5,1254.1,1254.0,1.19452043]
[1672894717769,2.5,1254.1,1253.9,6.19556663]
[1672894718715,2.5,1254.1,1254.0,1.19452043]
[1672894719027,2.5,1254.1,1254.0,3.69452043]
[1672894720394,2.5,1254.1,1254.0,1.19452043]
[1672894720606,2.5,1254.1,1253.9,6.19556663]
[1672894721017,2.5,1254.1,1254.0,1.19452043]
[1672894721229,2.5,1254.1,1254.0,2.5]
[1672894722284,2.5,1254.1,1253.9,8.69556663]
[1672894724922,2.5,1254.1,1253.9,5.48776663]
[1672894725234,2.5,1254.1,1253.9,2.98776663]
[1672894725552,2.5,1254.1,1253.9,1.19452043]
[1672894725764,2.5,1254.1,1253.9,1.19190704]
[1672894726182,6.68272434,1254.1,1253.9,1.19190704]
[1672894727342,6.68272434,1254.1,1253.8,2.5]
[1672894727651,3.2078,1254.0,1253.7,4.2932462]
[1672894727863,2.0,1253.9,1253.7,4.2932462]
[1672894731012,2.0,1253.9,1253.7,3.2932462]
[1672894731223,2.0,1253.9,1253.5,4.18405137]
[1672894731441,6.18272434,1253.9,1253.5,1.7932462]
[1672894731648,6.18272434,1253.9,1253.4,7.39185137]
[1672894731860,2.0,1253.9,1253.5,2.5]
[1672894732063,3.2078,1253.8,1253.5,2.5]
[1672894732273,2.5,1253.7,1253.5,2.5]
[1672894733428,2.5,1253.7,1253.4,1.7932462]
[1672894733644,2.5,1253.7,1253.4,2.5]
[1672894737227,5.7078,1253.7,1253.4,2.5]
[1672894738276,5.7078,1253.7,1253.4,5.7078]
[1672894738488,2.5,1253.7,1253.4,5.7078]
[1672894743005,2.5,1253.7,1253.4,2.5]
[1672894743316,2.5,1253.7,1253.4,5.7078]
[1672894747846,2.5,1253.7,1253.4,2.5]
[1672894748047,2.5,1253.7,1253.5,3.2078]
[1672894748259,2.5,1253.7,1253.6,2.5]
[1672894748678,2.5,1253.8,1253.6,2.5]
[1672894755196,2.5,1253.8,1253.4,7.5010462]
[1672894755409,2.5,1253.8,1253.4,5.7078]
[1672894756246,5.7078,1253.8,1253.4,5.7078]
[1672894758993,2.5,1253.8,1253.4,2.5]
[1672894759206,5.7078,1253.8,1253.4,2.5]
[1672894762461,2.5,1253.8,1253.4,2.5]
[1672894762673,3.2078,1253.7,1253.4,2.5]
[1672894762987,2.5,1253.6,1253.4,2.5]
[1672894764039,2.5,1253.6,1253.4,4.2932462]
[1672894764245,2.5,1253.6,1253.4,2.5]
[1672894764456,2.5,1253.6,1253.4,4.2932462]
[1672894766028,2.5,1253.6,1253.3,9.89185137]
[1672894766239,2.5,1253.6,1253.3,5.0010462]
[1672894766656,2.5,1253.6,1253.3,7.5010462]
[1672894767711,2.5,1253.6,1253.4,2.5]
[1672894767923,2.5,1253.6,1253.4,4.2932462]
[1672894780968,2.5,1253.6,1253.3,5.0010462]
[1672894781169,3.2078,1253.5,1253.2,1.7932462]
[1672894781485,7.39052434,1253.5,1253.2,4.2932462]
[1672894781699,2.0,1253.4,1253.2,4.2932462]
[1672894783805,9.89052434,1253.6,1253.3,2.5]
[1672894784113,2.5,1253.6,1253.3,7.5010462]
[1672894784539,2.5,1253.6,1253.3,9.89185137]
[1672894784852,2.49655232,1253.6,1253.4,1.7932462]
[1672894785063,2.49655232,1253.6,1253.5,2.5]
[1672894787272,2.49655232,1253.6,1253.4,5.0010462]
[1672894787699,2.49655232,1253.6,1253.5,2.5]
[1672894790111,6.68272434,1253.7,1253.5,2.5]
[1672894790431,2.5,1253.7,1253.5,2.5]
[1672894792530,6.68272434,1253.7,1253.5,2.5]
[1672894792953,2.5,1253.7,1253.5,2.5]
[1672894793481,6.68272434,1253.7,1253.5,2.5]
[1672894794000,2.5,1253.7,1253.5,2.5]
[1672894794221,6.68272434,1253.7,1253.5,2.5]
[1672894794740,6.68272434,1253.7,1253.4,5.0010462]
[1672894794959,6.68272434,1253.7,1253.5,2.5]
[1672894796636,6.68272434,1253.7,1253.4,5.0010462]
[1672894797145,3.2078,1253.6,1253.3,4.2932462]
[1672894797360,7.39052434,1253.6,1253.2,5.0010462]
[1672894797567,2.5,1253.5,1253.2,7.5010462]
[1672894797778,2.5,1253.5,1253.2,9.89185137]
[1672894797996,2.5,1253.5,1253.4,2.5]
[1672894798407,2.5,1253.5,1253.3,2.5]
[1672894799784,2.5,1253.5,1253.2,9.89185137]
[1672894799993,2.5,1253.5,1253.2,7.5010462]
[1672894800619,3.2078,1253.4,1253.2,5.0010462]
[1672894801150,2.5,1253.3,1253.2,5.0010462]
[1672894802732,2.5,1253.3,1253.1,4.2932462]
[1672894803045,2.5,1253.3,1253.2,1.7932462]
[1672894803257,3.2078,1253.4,1253.2,1.7932462]
[1672894803471,2.5,1253.3,1253.2,1.7932462]
[1672894805675,2.5,1253.3,1253.1,4.2932462]
[1672894808616,2.5,1253.3,1253.1,1.7932462]
[1672894809243,2.5,1253.3,1253.0,9.89185137]
[1672894809875,2.5,1253.3,1253.0,4.2932462]
[1672894810721,2.5,1253.3,1253.0,6.68405137]
[1672894811141,2.5,1253.3,1253.0,4.18405137]
[1672894811455,2.5,1253.3,1253.0,4.2932462]
[1672894813670,2.5,1253.3,1253.1,2.5]
[1672894815872,10.473,1253.3,1253.0,4.2932462]
[1672894816494,2.5,1253.3,1253.1,5.7078]
[1672894817021,2.5,1253.3,1253.1,7.5010462]
[1672894823756,3.2078,1253.4,1253.1,7.5010462]
[1672894824382,2.5,1253.3,1253.1,7.5010462]
[1672894824808,2.5,1253.5,1253.1,9.89185137]
[1672894825023,2.5,1253.5,1253.3,3.2078]
[1672894825235,2.5,1253.5,1253.4,2.5]
[1672894826607,2.5,1253.5,1253.3,3.2078]
[1672894827456,2.5,1253.5,1253.2,1.7932462]
[1672894827760,2.5,1253.5,1253.3,5.7078]
[1672894836911,2.5,1253.5,1253.3,7.5010462]
[1672894837325,2.5,1253.5,1253.3,5.0010462]
[1672894837538,2.5,1253.5,1253.3,3.2078]
[1672894838062,2.5,1253.5,1253.2,7.39185137]
[1672894839011,2.5,1253.5,1253.2,5.0010462]
[1672894839221,2.5,1253.5,1253.2,7.39185137]
[1672894839538,2.5,1253.5,1253.2,5.0010462]
[1672894839744,5.7078,1253.5,1253.1,6.68405137]
[1672894840057,17.86352434,1253.5,1253.1,6.68405137]
[1672894840484,17.86352434,1253.5,1253.2,1.7932462]
[1672894841109,13.6808,1253.5,1253.2,5.0010462]
[1672894841639,5.7078,1253.5,1253.2,5.0010462]
[1672894841954,13.6808,1253.5,1253.2,5.0010462]
[1672894842166,17.86352434,1253.5,1253.2,5.0010462]
[1672894842585,5.7078,1253.5,1253.3,2.5]
[1672894843104,13.6808,1253.5,1253.3,2.5]
[1672894843319,5.7078,1253.5,1253.3,2.5]
[1672894844793,5.7078,1253.5,1253.2,7.39185137]
[1672894845100,5.7078,1253.5,1253.3,2.5]
[1672894845315,2.5,1253.5,1253.3,2.5]
[1672894845522,2.5,1253.5,1253.3,5.7078]
[1672894845736,2.5,1253.5,1253.3,6.90313895]
[1672894847418,2.5,1253.5,1253.3,4.40313895]
[1672894848792,2.5,1253.5,1253.3,1.19533895]
[1672894850790,2.5,1253.5,1253.2,2.98858515]
[1672894850999,6.68272434,1253.5,1253.2,2.98858515]
[1672894851526,9.89052434,1253.5,1253.2,2.98858515]
[1672894851947,9.89052434,1253.5,1253.3,1.19533895]
[1672894852259,9.89052434,1253.5,1253.2,2.98858515]
[1672894852888,9.89052434,1253.5,1253.3,2.5]
[1672894854040,9.89052434,1253.5,1253.3,3.69533895]
[1672894854261,9.89052434,1253.5,1253.2,2.98858515]
[1672894854460,9.89052434,1253.5,1253.3,1.19533895]
[1672894854888,9.89052434,1253.5,1253.2,2.98858515]
[1672894855514,17.86352434,1253.5,1253.2,2.98858515]
[1672894855722,17.86352434,1253.5,1253.2,1.19533895]
[1672894856779,17.86352434,1253.5,1253.2,2.98858515]
[1672894858675,17.86352434,1253.5,1253.2,2.98391207]
[1672894860250,17.86352434,1253.5,1253.2,1.19066587]
[1672894860672,17.86352434,1253.5,1253.2,2.98391207]
[1672894862039,17.86352434,1253.5,1253.2,1.19066587]
[1672894862775,22.64670579,1253.5,1253.2,1.19066587]
[1672894864772,17.86352434,1253.5,1253.2,1.19066587]
[1672894865929,17.86352434,1253.5,1253.2,2.98391207]
[1672894870662,17.86352434,1253.5,1253.2,1.19066587]
[1672894870867,4.18272434,1253.4,1253.2,1.19066587]
[1672894871084,2.5,1253.3,1253.2,1.19066587]
[1672894873281,6.68272434,1253.4,1253.1,4.2932462]
[1672894873496,2.5,1253.4,1253.1,4.2932462]
[1672894874024,6.68272434,1253.4,1253.1,4.2932462]
[1672894875072,2.5,1253.4,1253.1,4.2932462]
[1672894878433,2.5,1253.4,1253.1,6.68405137]
[1672894879177,2.5,1253.4,1253.1,4.2932462]
[1672894879805,9.89052434,1253.5,1253.2,1.7932462]
[1672894880955,9.89052434,1253.5,1253.3,2.5]
[1672894881164,17.86352434,1253.5,1253.3,2.5]
[1672894881900,9.89052434,1253.5,1253.3,2.5]
[1672894885578,5.7078,1253.5,1253.3,2.5]
[1672894885788,2.5,1253.5,1253.3,2.5]
[1672894886005,6.68272434,1253.5,1253.3,2.5]
[1672894890195,6.68272434,1253.5,1253.2,5.0010462]
[1672894891359,6.68272434,1253.5,1253.3,2.5]
[1672894896822,14.65572434,1253.5,1253.2,1.7932462]
[1672894897030,14.65572434,1253.5,1253.1,4.2932462]
[1672894897239,7.39052434,1253.4,1253.1,6.68405137]
[1672894897451,2.5,1253.3,1253.1,6.68405137]
[1672894897662,2.5,1253.3,1253.1,4.2932462]
[1672894899035,2.5,1253.3,1253.1,6.68405137]
[1672894899876,2.5,1253.3,1253.1,4.2932462]
[1672894903237,2.5,1253.3,1253.1,6.68405137]
[1672894903658,2.5,1253.3,1253.1,4.2932462]
[1672894905131,2.5,1253.3,1253.1,6.68405137]
[1672894905339,2.5,1253.3,1253.1,4.2932462]
[1672894909011,6.68272434,1253.4,1253.1,4.2932462]
[1672894909224,2.5,1253.3,1253.1,6.68405137]
[1672894910169,2.5,1253.3,1253.2,1.7932462]
[1672894911325,2.5,1253.3,1253.1,9.89185137]
[1672894912169,2.5,1253.3,1253.1,6.68405137]
[1672894912378,2.5,1253.3,1253.1,9.89185137]
[1672894912902,2.5,1253.3,1253.1,7.5010462]
[1672894913114,2.5,1253.3,1253.1,9.89185137]
[1672894913744,2.5,1253.3,1253.2,1.7932462]
[1672894913952,2.5,1253.4,1253.1,9.89185137]
[1672894914901,2.5,1253.4,1253.2,1.7932462]
[1672894915738,2.5,1253.4,1253.1,9.89185137]
[1672894916581,2.5,1253.4,1253.2,1.7932462]
[1672894916793,2.5,1253.4,1253.1,9.89185137]
[1672894917531,2.5,1253.4,1253.2,1.7932462]
[1672894917733,2.5,1253.4,1253.1,9.89185137]
[1672894918365,2.5,1253.4,1253.1,6.68405137]
[1672894918576,2.5,1253.4,1253.1,9.89185137]
[1672894919316,6.68272434,1253.4,1253.1,9.89185137]
[1672894919842,6.68272434,1253.4,1253.1,7.5010462]
[1672894920476,6.68272434,1253.4,1253.1,4.2932462]
[1672894920786,6.68272434,1253.4,1253.1,7.5010462]
[1672894921197,6.68272434,1253.4,1253.1,6.68405137]
[1672894921417,6.68272434,1253.4,1253.1,9.89185137]
[1672894922257,6.68272434,1253.4,1253.1,7.5010462]
[1672894922785,6.68272434,1253.4,1253.1,9.89185137]
[1672894924468,19.64538145,1253.5,1253.1,9.89185137]
[1672894924469,17.86352434,1253.5,1253.2,1.7932462]
[1672894924777,9.89052434,1253.5,1253.2,1.7932462]
[1672894924983,9.89052434,1253.5,1253.3,2.5]
[1672894926455,6.68272434,1253.5,1253.3,2.5]
[1672894935608,6.68272434,1253.5,1253.2,1.7932462]
[1672894935929,11.46590579,1253.5,1253.2,1.7932462]
[1672894936556,14.67370579,1253.5,1253.2,1.7932462]
[1672894936979,9.89052434,1253.5,1253.2,1.7932462]
[1672894937395,14.67370579,1253.5,1253.2,1.7932462]
[1672894937925,9.89052434,1253.5,1253.2,1.7932462]
[1672894943605,6.68272434,1253.5,1253.2,1.7932462]
[1672894946550,6.68272434,1253.5,1253.3,2.5]
[1672894948333,6.68272434,1253.5,1253.2,1.7932462]
[1672894948551,4.3892,1253.4,1253.1,4.18082642]
[1672894948865,6.68272434,1253.3,1253.1,1.79002125]
[1672894949280,6.68272434,1253.3,1253.0,2.5]
[1672894951389,2.5,1253.3,1253.0,2.5]
[1672894952964,2.5,1253.3,1253.0,4.89080517]
[1672894953487,2.5,1253.3,1253.0,2.5]
[1672894953915,2.5,1253.3,1253.0,4.89080517]
[1672894954335,2.5,1253.3,1253.0,2.5]
[1672894954546,2.5,1253.3,1253.0,4.89080517]
[1672894955071,2.5,1253.3,1253.0,8.09860517]
[1672894957595,2.5,1253.3,1253.0,5.7078]
[1672894964836,2.5,1253.3,1253.0,8.09860517]
[1672894970201,9.89052434,1253.4,1253.0,8.09860517]
[1672894970410,5.7078,1253.4,1253.0,8.09860517]
[1672894970940,9.89052434,1253.4,1253.0,8.09860517]
[1672894971139,2.5,1253.3,1253.0,8.09860517]
[1672894972620,2.49542206,1253.3,1253.0,8.09860517]
[1672894972831,2.49542206,1253.3,1253.1,3.2078]
[1672894973035,2.49542206,1253.3,1253.2,2.5]
[1672894977344,2.49542206,1253.3,1253.0,4.89080517]
[1672894977345,2.49542206,1253.3,1253.1,3.2078]
[1672894977554,2.49542206,1253.3,1253.2,2.5]
[1672894979657,2.49542206,1253.3,1253.1,4.40322127]
[1672894983439,2.49542206,1253.3,1253.2,1.19542127]
[1672894983653,2.49542206,1253.3,1253.2,3.69542127]
[1672894983857,2.49542206,1253.3,1253.2,1.19542127]
[1672894984703,2.49542206,1253.3,1253.1,4.40322127]
[1672894985236,2.49542206,1253.3,1253.2,1.19542127]
[1672894985545,2.49542206,1253.3,1253.2,3.69542127]
[1672894987330,2.49542206,1253.3,1253.2,1.19542127]
[1672894993224,2.49542206,1253.3,1253.1,1.19542127]
[1672894993429,6.6781464,1253.3,1253.1,1.19542127]
[1672894994271,9.8859464,1253.3,1253.1,1.19542127]
[1672894995427,2.49542206,1253.3,1253.1,1.19542127]
[1672894996585,2.49542206,1253.3,1253.1,4.40322127]
[1672894997320,2.49542206,1253.3,1253.2,1.19542127]
[1672894999426,2.49542206,1253.3,1253.1,4.40322127]
[1672894999740,2.49542206,1253.3,1253.2,1.19542127]
[1672895000053,2.49542206,1253.3,1253.2,2.5]
[1672895000373,2.49542206,1253.3,1253.1,4.40322127]
[1672895001108,2.49542206,1253.3,1253.1,1.19542127]
[1672895001417,6.6781464,1253.3,1253.2,1.19542127]
[1672895004051,4.18272434,1253.3,1253.2,1.19542127]
[1672895004265,6.68272434,1253.4,1253.2,3.2078]
[1672895004573,6.68272434,1253.4,1253.3,3.69713525]
[1672895004791,4.18272434,1253.4,1253.3,3.69713525]
[1672895006575,4.18272434,1253.4,1253.2,6.90493525]
[1672895007411,4.18272434,1253.4,1253.2,3.69713525]
[1672895008471,4.18272434,1253.4,1253.2,5.49288249]
[1672895013513,4.18272434,1253.4,1253.3,1.19713525]
[1672895013721,4.18272434,1253.4,1253.2,5.49288249]
[1672895014569,2.5,1253.3,1253.2,5.49288249]
[1672895015094,2.5,1253.3,1253.2,4.29574724]
[1672895016983,2.5,1253.3,1253.2,7.50354724]
[1672895017516,2.5,1253.3,1253.2,8.70031072]
[1672895018565,6.68272434,1253.4,1253.2,8.70031072]
[1672895018979,6.68272434,1253.4,1253.3,1.19676348]
[1672895019295,2.5,1253.4,1253.3,1.19676348]
[1672895019503,2.5,1253.4,1253.2,8.70031072]
[1672895019928,6.68272434,1253.4,1253.2,8.70031072]
[1672895020139,2.5,1253.4,1253.2,8.70031072]
[1672895020877,6.68272434,1253.4,1253.2,8.70031072]
[1672895022665,6.68272434,1253.4,1253.2,5.49251072]
[1672895023087,6.68272434,1253.4,1253.2,8.70031072]
[1672895025503,6.68272434,1253.4,1253.3,1.19676348]
[1672895025920,4.18272434,1253.4,1253.3,1.19676348]
[1672895028448,11.46590579,1253.5,1253.3,1.19676348]
[1672895028652,6.68272434,1253.5,1253.3,1.19676348]
[1672895028867,6.68272434,1253.5,1253.3,2.99251072]
[1672895029498,6.68272434,1253.5,1253.3,1.19676348]
[1672895030229,6.68272434,1253.5,1253.3,4.40456348]
[1672895030439,6.68272434,1253.5,1253.4,2.5]
[1672895031599,6.68272434,1253.5,1253.3,5.90456348]
[1672895033697,6.68272434,1253.5,1253.3,2.69676348]
[1672895034336,6.68272434,1253.5,1253.3,1.19676348]
[1672895037281,4.18272434,1253.4,1253.2,8.70031072]
[1672895037485,2.5,1253.3,1253.2,3.69676348]
[1672895038115,2.5,1253.3,1253.2,1.19676348]
[1672895042431,2.5,1253.3,1253.1,2.99251072]
[1672895043483,2.5,1253.3,1253.2,1.19676348]
[1672895043689,2.5,1253.3,1253.2,3.69676348]
[1672895045472,2.5,1253.3,1253.2,1.19676348]
[1672895045899,2.5,1253.3,1253.2,3.69676348]
[1672895046317,2.5,1253.3,1253.2,1.19676348]
[1672895047267,9.89052434,1253.4,1253.2,3.69676348]
[1672895048313,2.5,1253.3,1253.2,3.69676348]
[1672895048518,2.5,1253.3,1253.2,3.69403324]
[1672895050731,6.68272434,1253.4,1253.2,3.69403324]
[1672895053359,9.89052434,1253.5,1253.2,4.29574724]
[1672895054936,14.67370579,1253.5,1253.2,4.29574724]
[1672895055462,6.68272434,1253.5,1253.2,7.50354724]
[1672895056192,4.18272434,1253.4,1253.2,7.50354724]
[1672895056402,2.5,1253.3,1253.2,7.50354724]
[1672895056712,4.18272434,1253.4,1253.2,7.50354724]
[1672895056927,11.46590579,1253.5,1253.2,7.50354724]
[1672895057137,6.68272434,1253.5,1253.2,7.50354724]
[1672895057773,4.18272434,1253.5,1253.2,7.50354724]
[1672895057986,12.17370579,1253.6,1253.3,1.79574724]
[1672895058189,7.39052434,1253.6,1253.3,1.79574724]
[1672895058511,9.89052434,1253.6,1253.4,1.5]
[1672895058722,2.5,1253.5,1253.4,1.5]
[1672895063243,6.68272434,1253.5,1253.4,1.5]
[1672895068176,6.68272434,1253.5,1253.3,5.00354724]
[1672895068386,6.68272434,1253.5,1253.4,1.5]
[1672895071334,6.68272434,1253.5,1253.3,1.79574724]
[1672895078157,6.68390257,1253.5,1253.3,1.79574724]
[1672895078579,4.18390257,1253.5,1253.3,1.79574724]
[1672895079107,4.18390257,1253.5,1253.4,1.5]
[1672895081630,11.46708402,1253.6,1253.4,1.5]
[1672895087827,6.68390257,1253.5,1253.4,1.5]
[1672895092556,6.68390257,1253.5,1253.3,5.00354724]
[1672895092768,6.68390257,1253.5,1253.4,1.5]
[1672895093925,2.5,1253.5,1253.4,1.5]
[1672895094237,6.68390257,1253.5,1253.4,1.5]
[1672895094870,6.68390257,1253.5,1253.3,5.00354724]
[1672895095921,6.68390257,1253.5,1253.3,1.79574724]
[1672895096240,6.68390257,1253.5,1253.3,5.00354724]
[1672895096763,6.68390257,1253.5,1253.3,1.79574724]
[1672895096966,6.68390257,1253.5,1253.3,5.00354724]
[1672895097176,6.68390257,1253.5,1253.3,3.2078]
[1672895097918,6.68390257,1253.5,1253.2,9.89435241]
[1672895099707,6.68390257,1253.5,1253.2,6.68655241]
[1672895100224,6.68390257,1253.5,1253.3,1.5]
[1672895100440,4.18390257,1253.5,1253.3,1.5]
[1672895100645,6.68390257,1253.5,1253.3,1.5]
[1672895106638,6.68390257,1253.5,1253.3,3.29574724]
[1672895107165,6.68390257,1253.5,1253.3,1.5]
[1672895111263,4.18390257,1253.5,1253.3,1.5]
[1672895111471,4.18390257,1253.5,1253.3,3.29574724]
[1672895112424,6.68390257,1253.5,1253.3,3.29574724]
[1672895113057,4.18390257,1253.5,1253.3,3.29574724]
[1672895114000,6.68390257,1253.5,1253.3,3.29574724]
[1672895114209,4.18390257,1253.5,1253.3,3.29574724]
[1672895115470,6.68390257,1253.5,1253.3,3.29574724]
[1672895118617,6.68390257,1253.5,1253.3,6.50354724]
[1672895119252,6.68390257,1253.5,1253.3,3.29574724]
[1672895119464,6.68390257,1253.5,1253.3,6.50354724]
[1672895119781,6.68390257,1253.5,1253.3,3.29574724]
[1672895119995,6.68390257,1253.5,1253.3,6.50354724]
[1672895120938,6.68390257,1253.5,1253.3,3.29574724]
[1672895121256,4.18390257,1253.5,1253.3,6.50354724]
[1672895127559,4.18390257,1253.5,1253.3,3.29574724]
[1672895127773,4.18390257,1253.5,1253.3,6.50354724]
[1672895129560,6.68390257,1253.5,1253.3,6.50354724]
[1672895130511,6.68390257,1253.5,1253.3,5.00354724]
[1672895131242,6.68390257,1253.5,1253.3,3.2078]
[1672895132181,9.89170257,1253.5,1253.2,4.29574724]
[1672895132391,2.5,1253.4,1253.2,4.29574724]
[1672895132597,6.68390257,1253.4,1253.2,4.29574724]
[1672895133240,2.5,1253.4,1253.2,4.29574724]
[1672895145216,2.5,1253.4,1253.2,7.50354724]
[1672895153628,2.5,1253.4,1253.2,4.29574724]
[1672895153942,2.5,1253.4,1253.2,7.50354724]
[1672895154780,2.5,1253.4,1253.2,4.29574724]
[1672895154994,9.89170257,1253.5,1253.2,7.50354724]
[1672895155307,2.5,1253.4,1253.2,7.50354724]
[1672895157513,2.5,1253.4,1253.2,4.29574724]
[1672895158036,2.5,1253.4,1253.2,7.50354724]
[1672895158245,2.5,1253.4,1253.2,4.29574724]
[1672895158454,2.5,1253.4,1253.2,7.50354724]
[1672895159410,2.5,1253.4,1253.2,4.29574724]
[1672895159612,2.5,1253.4,1253.2,7.50354724]
[1672895163606,2.5,1253.4,1253.2,4.29574724]
[1672895163816,2.5,1253.4,1253.2,7.50354724]
[1672895166343,2.5,1253.4,1253.2,5.00354724]
[1672895168445,2.5,1253.4,1253.3,1.19664257]
[1672895168655,2.5,1253.4,1253.3,3.69664257]
[1672895170963,2.5,1253.4,1253.3,1.19664257]
[1672895171698,11.46708402,1253.5,1253.3,1.19664257]
[1672895172015,2.5,1253.4,1253.3,1.19664257]
[1672895172217,2.5,1253.4,1253.3,5.49238981]
[1672895176114,6.68390257,1253.5,1253.3,5.49238981]
[1672895177803,6.68390257,1253.5,1253.3,8.70018981]
[1672895179799,2.5,1253.4,1253.3,6.20018981]
[1672895180538,2.5,1253.4,1253.3,4.40444257]
[1672895182527,2.5,1253.4,1253.3,1.19664257]
[1672895187789,2.5,1253.4,1253.3,3.69664257]
[1672895187989,2.5,1253.4,1253.3,1.19664257]
[1672895190314,2.5,1253.4,1253.3,2.99238981]
[1672895192096,6.68390257,1253.5,1253.3,5.49238981]
[1672895192833,2.5,1253.5,1253.4,2.69664257]
[1672895193984,22.92508402,1253.7,1253.4,7.70018981]
[1672895194201,8.96708402,1253.7,1253.4,7.70018981]
[1672895194411,2.5,1253.6,1253.4,7.70018981]
[1672895195466,2.5,1253.6,1253.5,2.5]
[1672895197354,6.68390257,1253.7,1253.5,2.5]
[1672895197667,2.5,1253.6,1253.5,2.49774147]
[1672895204398,2.5,1253.7,1253.5,2.49774147]
[1672895206185,2.5,1253.7,1253.5,5.70554147]
[1672895207558,2.5,1253.7,1253.5,2.49774147]
[1672895207767,2.5,1253.7,1253.5,5.70554147]
[1672895207979,2.5,1253.7,1253.5,2.49774147]
[1672895208293,2.5,1253.7,1253.5,5.70554147]
[1672895208609,2.5,1253.7,1253.5,2.49774147]
[1672895209026,2.5,1253.7,1253.5,5.70554147]
[1672895212925,2.5,1253.7,1253.5,2.49774147]
[1672895213134,2.5,1253.7,1253.5,5.70554147]
[1672895213451,2.5,1253.7,1253.5,3.2078]
[1672895214392,6.68390257,1253.7,1253.5,3.2078]
[1672895214918,2.5,1253.7,1253.5,3.2078]
[1672895215654,2.5,1253.7,1253.4,5.90444257]
[1672895217966,6.68390257,1253.7,1253.4,5.90444257]
[1672895218913,6.68390257,1253.7,1253.4,7.70018981]
[1672895219121,2.5,1253.7,1253.4,7.70018981]
[1672895219337,2.5,1253.7,1253.5,2.5]
[1672895220065,2.5,1253.7,1253.5,3.69664257]
[1672895220275,2.5,1253.7,1253.5,2.5]
[1672895220489,9.89170257,1253.8,1253.5,2.5]
[1672895220804,2.5,1253.7,1253.5,2.5]
[1672895222906,2.5,1253.7,1253.5,3.69664257]
[1672895225631,2.5,1253.7,1253.5,2.5]
[1672895228156,2.5,1253.7,1253.5,3.69664257]
[1672895229939,6.68390257,1253.7,1253.5,3.69664257]
[1672895231936,6.68390257,1253.7,1253.5,6.90444257]
[1672895233511,6.68390257,1253.7,1253.5,4.40444257]
[1672895234246,6.68390257,1253.7,1253.5,6.20018981]
[1672895234447,6.68390257,1253.7,1253.5,4.40444257]
[1672895235403,6.68390257,1253.7,1253.5,6.20018981]
[1672895236346,6.68390257,1253.7,1253.5,2.99238981]
[1672895236552,6.68390257,1253.7,1253.5,6.20018981]
[1672895237295,6.68390257,1253.7,1253.5,2.99238981]